bitfinex-derivatives/quotes_BTCF0:USTF0_20250630
["timestamp","ask_amount","ask_price","bid_price","bid_amount"]
[1751296061862,0.1869435,106960.0,106950.0,0.63354882]
[1751296062056,0.5477435,106960.0,106950.0,0.85843885]
[1751296062259,0.61059995,106960.0,106950.0,0.43199985]
[1751296062462,0.60059995,106960.0,106950.0,0.88843885]
[1751296062669,0.96139995,106960.0,106950.0,0.85050982]
[1751296062861,0.60059995,106960.0,106950.0,0.88843885]
[1751296063060,0.96139995,106960.0,106950.0,0.93413885]
[1751296063260,0.96139995,106960.0,106950.0,0.32073885]
[1751296063468,0.96139995,106960.0,106950.0,1.09037885]
[1751296063871,0.65599954,106960.0,106950.0,1.27733995]
[1751296064060,0.2803435,106960.0,106950.0,1.27733995]
[1751296064263,0.61119954,106960.0,106950.0,1.27733995]
[1751296064557,0.61119954,106960.0,106950.0,1.24733995]
[1751296064769,0.61119954,106960.0,106950.0,1.06437885]
[1751296064974,0.61119954,106960.0,106950.0,1.25133995]
[1751296065273,0.61119954,106960.0,106950.0,1.26534994]
[1751296066573,0.61119954,106960.0,106950.0,1.30994994]
[1751296067166,0.56259954,106960.0,106950.0,1.65673995]
[1751296067874,0.56259954,106960.0,106950.0,1.29593995]
[1751296068073,0.56259954,106960.0,106950.0,1.65673995]
[1751296068376,0.56259954,106960.0,106950.0,1.66673995]
[1751296068878,0.56259954,106960.0,106950.0,1.30593995]
[1751296069475,0.56259954,106960.0,106950.0,1.66673995]
[1751296069671,0.1869435,106960.0,106950.0,1.66673995]
[1751296071269,0.56259954,106960.0,106950.0,1.66673995]
[1751296071970,0.1869435,106960.0,106950.0,1.66673995]
[1751296072277,0.1869086,106980.0,106970.0,0.2803663]
[1751296072468,0.1869086,106980.0,106970.0,1.77807237]
[1751296072776,0.1869086,106980.0,106970.0,1.76321633]
[1751296072979,0.1869086,106980.0,106970.0,1.85321633]
[1751296073980,0.1869086,106980.0,106970.0,1.86261089]
[1751296074271,0.1869086,106980.0,106970.0,2.47777089]
[1751296074475,0.51583414,106990.0,106980.0,0.1869085]
[1751296074476,0.70273804,106990.0,106980.0,0.1869085]
[1751296074680,0.70273804,106990.0,106980.0,0.54769853]
[1751296074882,0.70273804,106990.0,106980.0,0.56428563]
[1751296075180,0.65601114,106990.0,106980.0,0.56428563]
[1751296075578,0.65601114,106990.0,106980.0,1.29136563]
[1751296075779,1.06271114,106990.0,106980.0,1.24546563]
[1751296075976,0.7327551,106990.0,106980.0,1.0205756]
[1751296076177,1.17201114,106990.0,106980.0,0.7876671]
[1751296076376,1.17201114,106990.0,106970.0,0.15612]
[1751296076377,0.1869086,106980.0,106970.0,0.15612]
[1751296076578,1.01496464,106980.0,106970.0,0.9576061]
[1751296076884,1.09496464,106980.0,106970.0,0.9576061]
[1751296078080,1.09496464,106980.0,106970.0,0.77068]
[1751296078479,0.1869261,106970.0,106960.0,0.4680361]
[1751296078675,0.0431,106970.0,106960.0,1.46372613]
[1751296078876,0.1869261,106970.0,106960.0,1.05372613]
[1751296079078,0.56258214,106970.0,106960.0,1.46368613]
[1751296079282,0.56258214,106970.0,106960.0,1.82448613]
[1751296079583,0.1869261,106970.0,106960.0,1.82448613]
[1751296079787,0.1869261,106970.0,106960.0,1.82648613]
[1751296079973,0.56258214,106970.0,106960.0,1.82648613]
[1751296080374,0.3234779,106980.0,106970.0,0.1869255]
[1751296080580,0.1869201,106980.0,106970.0,0.50231553]
[1751296080886,0.70273854,106990.0,106980.0,0.186908]
[1751296081086,0.3103556,106990.0,106980.0,1.31973803]
[1751296081290,0.68601164,106990.0,106980.0,1.68053803]
[1751296081490,0.2336293,106990.0,106980.0,1.68053803]
[1751296082189,0.70007994,107000.0,106990.0,0.1868906]
[1751296082388,0.69896121,107000.0,106990.0,0.50338063]
[1751296082584,0.65597994,107000.0,106990.0,0.50338063]
[1751296082883,0.65597994,107000.0,106990.0,0.86418063]
[1751296084189,0.60925934,107000.0,106990.0,0.86418063]
[1751296084384,0.2803024,107010.0,107000.0,0.1868731]
[1751296084689,0.2803024,107010.0,107000.0,1.67738313]
[1751296084891,0.65595844,107010.0,107000.0,1.67738313]
[1751296086280,0.65595844,107010.0,107000.0,1.31658313]
[1751296086485,0.65595844,107010.0,107000.0,1.67738313]
[1751296086681,0.2803024,107010.0,107000.0,1.4524931]
[1751296086888,0.2803024,107010.0,107000.0,1.67738313]
[1751296087086,0.2803024,107010.0,107000.0,1.75231672]
[1751296087878,0.65595844,107010.0,107000.0,1.39151672]
[1751296088082,1.01675844,107010.0,107000.0,1.15786362]
[1751296088282,1.06075844,107010.0,107000.0,1.34473682]
[1751296089188,1.10775844,107010.0,107000.0,1.34473682]
[1751296089682,1.10775844,107010.0,107000.0,1.15786362]
[1751296089882,1.10775844,107010.0,107000.0,1.11356362]
[1751296090387,1.10775844,107010.0,107000.0,1.30043672]
[1751296090689,1.10775844,107010.0,107000.0,0.77028]
[1751296090886,1.43775844,107010.0,107000.0,0.77028]
[1751296091080,1.48775844,107010.0,107000.0,0.77028]
[1751296091279,1.14775844,107010.0,107000.0,0.77028]
[1751296091480,1.14775844,107010.0,107000.0,0.15608]
[1751296091688,1.14775844,107010.0,107000.0,0.77]
[1751296092090,0.1868731,107000.0,106990.0,0.25020114]
[1751296092288,0.60842914,107000.0,106990.0,1.24557117]
[1751296092685,0.60842914,107000.0,106990.0,1.02068114]
[1751296092991,0.60842914,107000.0,106990.0,1.24557117]
[1751296093390,0.60842914,107000.0,106990.0,1.60637117]
[1751296093583,0.3270259,107010.0,107000.0,0.1868732]
[1751296093785,0.2335907,107010.0,107000.0,0.86356323]
[1751296093981,0.3259724,107020.0,107010.0,0.1868557]
[1751296094186,0.2802724,107020.0,107010.0,1.63446573]
[1751296094387,0.2802724,107020.0,107010.0,1.27366573]
[1751296094690,0.2802724,107020.0,107010.0,1.63446573]
[1751296094883,0.2802724,107020.0,107010.0,1.27366573]
[1751296095080,0.70162844,107020.0,107010.0,1.27366573]
[1751296095280,0.70162844,107020.0,107010.0,1.63446573]
[1751296095680,0.70162844,107020.0,107010.0,1.27366573]
[1751296096995,1.06242844,107020.0,107010.0,1.18146563]
[1751296097191,0.79032844,107020.0,107010.0,1.18146563]
[1751296097496,1.15112844,107020.0,107010.0,1.18146563]
[1751296097697,1.15112844,107020.0,107010.0,0.99461003]
[1751296097896,1.24454344,107020.0,107010.0,0.76884]
[1751296098196,1.24454344,107020.0,107010.0,0.9556956]
[1751296098698,1.20084344,107020.0,107010.0,0.9556956]
[1751296098885,1.20084344,107020.0,107010.0,1.0017956]
[1751296099087,0.2335486,107020.0,107010.0,1.58748563]
[1751296099390,0.2335486,107020.0,107010.0,1.69918971]
[1751296099893,0.60920464,107020.0,107010.0,1.69918971]
[1751296100689,0.60920464,107020.0,107010.0,1.33838971]
[1751296100890,0.60920464,107020.0,107010.0,1.29388971]
[1751296101090,0.65480464,107020.0,107010.0,1.29388971]
[1751296102404,0.65480464,107020.0,107010.0,1.06899968]
[1751296102595,0.65480464,107020.0,107010.0,1.29388971]
[1751296102989,0.2791486,107020.0,107010.0,1.42979968]
[1751296103203,0.2335486,107020.0,107010.0,1.65468971]
[1751296103496,0.2335486,107020.0,107010.0,1.69818971]
[1751296105396,0.2335486,107020.0,107010.0,1.66818971]
[1751296105587,0.2335486,107020.0,107010.0,1.99818971]
[1751296105788,0.2335486,107020.0,107010.0,1.69679175]
[1751296105983,0.1868382,107020.0,107010.0,1.64098563]
[1751296106182,0.1868382,107020.0,107010.0,1.69679175]
[1751296106692,0.1868382,107020.0,107010.0,1.71371388]
[1751296107995,0.1868382,107020.0,107010.0,1.28710776]
[1751296108196,0.1868382,107020.0,107010.0,1.96790776]
[1751296108396,0.1868382,107020.0,107010.0,2.02371388]
[1751296108796,0.1868382,107020.0,107010.0,1.70371388]
[1751296108992,0.1868382,107020.0,107010.0,1.71371388]
[1751296109191,0.1868382,107020.0,107010.0,2.02371388]
[1751296110790,0.001,107030.0,107020.0,0.1868382]
[1751296110990,0.1878208,107030.0,107020.0,1.01403435]
[1751296112398,0.1878208,107030.0,107020.0,1.78175435]
[1751296112599,0.1878208,107030.0,107020.0,1.73175435]
[1751296112800,0.1878208,107030.0,107020.0,2.09078095]
[1751296113303,0.1878208,107030.0,107020.0,1.75074095]
[1751296113503,0.61007684,107030.0,107020.0,1.75074095]
[1751296117201,0.2344208,107030.0,107020.0,1.38994095]
[1751296117404,0.2344208,107030.0,107020.0,1.75074095]
[1751296117600,0.1878208,107030.0,107020.0,1.75074095]
[1751296118201,0.1878208,107030.0,107020.0,2.59190095]
[1751296118502,0.001,107030.0,107020.0,3.3158901]
[1751296119204,0.2425568,107050.0,107040.0,0.1868033]
[1751296119406,0.1867866,107050.0,107040.0,1.61317111]
[1751296119603,0.1867866,107050.0,107040.0,1.74817111]
[1751296119902,0.1867866,107050.0,107040.0,2.05817111]
[1751296120093,0.74882614,107060.0,107050.0,0.1867858]
[1751296120291,0.2797777,107060.0,107050.0,0.63105303]
[1751296120503,0.2344777,107060.0,107050.0,0.89894306]
[1751296121198,0.2803777,107060.0,107050.0,0.89894306]
[1751296121705,0.65603374,107060.0,107050.0,0.90894306]
[1751296122006,0.65603374,107060.0,107050.0,0.54814306]
[1751296122204,0.65603374,107060.0,107050.0,0.92185582]
[1751296122503,0.65603374,107060.0,107050.0,0.88458859]
[1751296122702,0.65603374,107060.0,107050.0,0.29889856]
[1751296122898,1.02683374,107060.0,107050.0,1.05739163]
[1751296123200,1.06073374,107060.0,107050.0,0.64957307]
[1751296123409,1.40073374,107060.0,107050.0,0.19233307]
[1751296123700,1.40073374,107060.0,107050.0,0.80465307]
[1751296124200,1.40073374,107060.0,107050.0,0.83251182]
[1751296124401,1.69073374,107060.0,107050.0,1.83251182]
[1751296124704,1.88073374,107060.0,107050.0,1.83251182]
[1751296124907,2.79320578,107060.0,107050.0,1.02793875]
[1751296125108,2.79320578,107060.0,107050.0,0.74118747]
[1751296125507,2.79320578,107060.0,107050.0,0.65657467]
[1751296125809,0.1867862,107050.0,107040.0,0.03725307]
[1751296126009,2.01673828,107050.0,107040.0,0.03725307]
[1751296126508,0.1868036,107040.0,107030.0,0.86048583]
[1751296126805,1.01425964,107040.0,107030.0,0.80457307]
[1751296127800,1.01425964,107040.0,107030.0,0.19233307]
[1751296128004,1.29425964,107040.0,107030.0,0.86040583]
[1751296128310,1.29425964,107040.0,107030.0,0.80449307]
[1751296129009,1.34015964,107040.0,107030.0,0.80449307]
[1751296129203,1.34015964,107040.0,107030.0,0.76724]
[1751296129904,1.36151213,107040.0,107030.0,0.76724]
[1751296130811,1.36151213,107040.0,107030.0,0.9540611]
[1751296131010,1.34015964,107040.0,107030.0,0.9540611]
[1751296131211,1.34015964,107040.0,107030.0,0.9981611]
[1751296131410,0.9645036,107040.0,107030.0,0.9981611]
[1751296131610,1.34015964,107040.0,107030.0,0.81134]
[1751296132519,1.36149495,107040.0,107030.0,0.76716]
[1751296136412,0.98583891,107040.0,107030.0,0.76716]
[1751296136913,1.36149495,107040.0,107030.0,0.76716]
[1751296137308,1.46149495,107040.0,107030.0,0.76716]
[1751296137508,1.36149495,107040.0,107030.0,0.76716]
[1751296137810,1.46149495,107040.0,107030.0,0.15508]
[1751296138010,1.46148264,107040.0,107030.0,0.76704]
[1751296138417,1.46148264,107040.0,107030.0,0.15508]
[1751296138718,1.91558264,107040.0,107030.0,0.15508]
[1751296140007,1.5399266,107040.0,107030.0,0.15508]
[1751296140207,1.91558264,107040.0,107030.0,0.15508]
[1751296141115,1.81558264,107040.0,107030.0,0.15508]
[1751296141823,1.76003878,107040.0,107030.0,0.15508]
[1751296143121,1.86003878,107040.0,107030.0,0.15508]
[1751296143525,0.1868211,107030.0,107020.0,0.98827276]
[1751296143722,1.22303328,107030.0,107020.0,1.14265985]
[1751296143912,0.72895524,107030.0,107020.0,1.03974709]
[1751296144115,1.03906742,107030.0,107020.0,0.19896]
[1751296144427,1.04906742,107030.0,107020.0,0.24236]
[1751296145127,0.72895524,107030.0,107020.0,0.24236]
[1751296145425,1.04906742,107030.0,107020.0,0.24236]
[1751296146124,1.30906742,107030.0,107020.0,0.24236]
[1751296146725,1.03906742,107030.0,107020.0,0.24236]
[1751296146928,1.04839622,107030.0,107020.0,0.24236]
[1751296147721,1.32839622,107030.0,107020.0,0.24236]
[1751296147922,1.32839622,107030.0,107020.0,0.19896]
[1751296148425,1.29839622,107030.0,107020.0,0.19896]
[1751296148724,1.27706208,107030.0,107020.0,0.19896]
[1751296149826,1.27706208,107030.0,107020.0,0.24256]
[1751296150026,1.37706208,107030.0,107020.0,0.19896]
[1751296150227,1.08838176,107030.0,107020.0,0.19896]
[1751296150423,0.1868385,107020.0,107010.0,0.09951276]
[1751296150623,0.90985068,107020.0,107010.0,0.14261276]
[1751296150823,0.95565068,107020.0,107010.0,0.36750279]
[1751296151029,0.95565068,107020.0,107010.0,0.09901276]
[1751296151228,1.21565068,107020.0,107010.0,0.13631533]
[1751296151528,1.71565068,107020.0,107010.0,0.08040257]
[1751296151923,1.71565068,107020.0,107010.0,0.0948707]
[1751296152124,1.71565068,107020.0,107010.0,0.19498346]
[1751296152827,1.71565068,107020.0,107010.0,0.19698346]
[1751296154219,1.71565068,107020.0,107010.0,0.15968089]
[1751296154425,1.71565068,107020.0,107010.0,0.19700047]
[1751296155128,1.71565068,107020.0,107010.0,0.15968089]
[1751296155332,1.3955385,107020.0,107010.0,0.15968089]
[1751296155522,1.71565068,107020.0,107010.0,0.15968089]
[1751296156623,1.3497385,107020.0,107010.0,0.32795068]
[1751296156824,1.36775068,107020.0,107010.0,0.55284071]
[1751296157025,1.36775068,107020.0,107010.0,0.61542692]
[1751296157233,1.0476385,107020.0,107010.0,0.61542692]
[1751296157530,0.86775068,107020.0,107010.0,0.61542692]
[1751296158725,0.86775068,107020.0,107010.0,0.38457092]
[1751296158928,0.91095068,107020.0,107010.0,1.15089092]
[1751296159226,1.45355068,107020.0,107010.0,1.15089092]
[1751296159532,1.41095068,107020.0,107010.0,1.15089092]
[1751296160033,1.41095068,107020.0,107010.0,0.38457092]
[1751296160232,1.41095068,107020.0,107010.0,1.33774692]
[1751296160431,1.41095068,107020.0,107010.0,1.18821996]
[1751296161335,0.6868385,107020.0,107010.0,2.41598814]
[1751296161537,0.6868385,107020.0,107010.0,2.3786591]
[1751296161732,0.6868385,107020.0,107010.0,2.4204591]
[1751296162035,0.186835,107030.0,107020.0,0.1868388]
[1751296162234,0.186835,107030.0,107020.0,1.62819472]
[1751296162938,0.186835,107030.0,107020.0,1.27808254]
[1751296163347,0.50694718,107030.0,107020.0,1.81432254]
[1751296163725,0.50694718,107030.0,107020.0,1.68352254]
[1751296163925,0.186835,107030.0,107020.0,2.04432254]
[1751296164929,0.186835,107030.0,107020.0,1.72432254]
[1751296165935,0.50694718,107030.0,107020.0,1.36348254]
[1751296166432,0.50694718,107030.0,107020.0,1.34901441]
[1751296166737,0.50694718,107030.0,107020.0,1.16213561]
[1751296166933,0.91014718,107030.0,107020.0,1.34897441]
[1751296167235,0.91014718,107030.0,107020.0,0.39597561]
[1751296167439,0.91014718,107030.0,107020.0,1.34893441]
[1751296167633,0.91014718,107030.0,107020.0,0.28408558]
[1751296167835,0.97522067,107030.0,107020.0,1.09029561]
[1751296168441,0.97522067,107030.0,107020.0,1.27713441]
[1751296168946,0.97522067,107030.0,107020.0,1.09029561]
[1751296169231,0.97522067,107030.0,107020.0,0.28087561]
[1751296169538,1.11942067,107030.0,107020.0,1.04651561]
[1751296169940,1.01942067,107030.0,107020.0,0.43527561]
[1751296170141,1.01942067,107030.0,107020.0,1.08384802]
[1751296170340,1.11942067,107030.0,107020.0,0.85895799]
[1751296170540,1.01942067,107030.0,107020.0,0.85895799]
[1751296171137,1.01942067,107030.0,107020.0,0.82162558]
[1751296171439,1.01942067,107030.0,107020.0,1.04579681]
[1751296171738,1.01942067,107030.0,107020.0,0.82162558]
[1751296171938,1.01942067,107030.0,107020.0,1.04579769]
[1751296172140,1.11942067,107030.0,107020.0,0.85895889]
[1751296172337,1.11942067,107030.0,107020.0,0.09331889]
[1751296172533,1.01942067,107030.0,107020.0,0.85887889]
[1751296172840,0.557635,107030.0,107020.0,1.04571769]
[1751296173041,0.186835,107030.0,107020.0,1.65487441]
[1751296174044,0.186835,107030.0,107020.0,2.01567441]
[1751296176138,0.186835,107030.0,107020.0,1.95968883]
[1751296176543,0.186835,107030.0,107020.0,2.01567277]
[1751296176743,0.186835,107030.0,107020.0,1.95968883]
[1751296177243,0.186835,107030.0,107020.0,2.01567263]
[1751296177744,0.186835,107030.0,107020.0,1.95968883]
[1751296178042,0.186835,107030.0,107020.0,2.01566935]
[1751296178235,0.186835,107030.0,107020.0,1.65486935]
[1751296178944,0.186835,107030.0,107020.0,2.01566935]
[1751296179139,0.186835,107030.0,107020.0,1.65486935]
[1751296179345,0.186835,107030.0,107020.0,2.01566935]
[1751296180243,0.186835,107030.0,107020.0,1.65486935]
[1751296180843,0.186835,107030.0,107020.0,2.01566935]
[1751296181143,0.186835,107030.0,107020.0,1.65486935]
[1751296181443,0.186835,107030.0,107020.0,2.01566935]
[1751296181843,0.186835,107030.0,107020.0,1.95968883]
[1751296182637,0.186835,107030.0,107020.0,1.7347988]
[1751296182846,0.186835,107030.0,107020.0,2.3348745]
[1751296183546,0.186835,107030.0,107020.0,2.39084835]
[1751296183845,0.186835,107030.0,107020.0,1.95968883]
[1751296184145,0.186835,107030.0,107020.0,2.01566231]
[1751296184346,0.186835,107030.0,107020.0,1.95968883]
[1751296186252,0.186835,107030.0,107020.0,2.3348745]
[1751296186855,0.186835,107030.0,107020.0,2.80024883]
[1751296187045,0.186835,107030.0,107020.0,2.80020883]
[1751296187846,0.186835,107030.0,107020.0,3.1202398]
[1751296189447,0.186835,107030.0,107020.0,1.67444883]
[1751296189651,0.186835,107030.0,107020.0,2.80012883]
[1751296190246,0.50686597,107030.0,107020.0,2.80008883]
[1751296190447,0.55016597,107030.0,107020.0,2.80008883]
[1751296190648,0.55016597,107030.0,107020.0,2.43928883]
[1751296190846,0.55016597,107030.0,107020.0,2.80008883]
[1751296191151,0.186835,107030.0,107020.0,3.1201198]
[1751296191853,0.186835,107030.0,107020.0,2.43928883]
[1751296192053,0.186835,107030.0,107020.0,2.80008883]
[1751296192852,0.186835,107030.0,107020.0,3.1201198]
[1751296195951,0.186835,107030.0,107020.0,3.17612335]
[1751296196154,0.186835,107030.0,107020.0,3.1201198]
[1751296196949,0.186835,107030.0,107020.0,2.03524883]
[1751296197151,0.50686597,107030.0,107020.0,2.49497453]
[1751296197350,0.55046597,107030.0,107020.0,2.49497453]
[1751296197949,0.230435,107030.0,107020.0,2.49497453]
[1751296198143,0.230435,107030.0,107020.0,2.85577453]
[1751296198348,0.230435,107030.0,107020.0,2.79976883]
[1751296200247,0.5009116,107040.0,107020.0,2.79976883]
[1751296200553,0.2309988,107050.0,107040.0,0.1868039]
[1751296200765,0.2344792,107060.0,107050.0,0.1867864]
[1751296201053,0.91531017,107060.0,107050.0,0.29038646]
[1751296201253,0.6395792,107060.0,107050.0,1.42146365]
[1751296201564,1.01641017,107060.0,107050.0,1.42146747]
[1751296201755,1.02590067,107060.0,107050.0,1.18708107]
[1751296201954,1.02590067,107060.0,107050.0,1.04386747]
[1751296203257,1.02590067,107060.0,107050.0,0.98786741]
[1751296203460,1.01641017,107060.0,107050.0,1.04386747]
[1751296203850,1.06071017,107060.0,107050.0,0.22410741]
[1751296204057,1.06071017,107060.0,107050.0,0.03732101]
[1751296204259,1.06071017,107060.0,107050.0,0.98770751]
[1751296205550,1.06071017,107060.0,107050.0,0.80092101]
[1751296206052,0.7406792,107060.0,107050.0,0.98770741]
[1751296206357,1.06071017,107060.0,107050.0,0.98770741]
[1751296207853,0.7406792,107060.0,107050.0,0.98770741]
[1751296208053,1.06071017,107060.0,107050.0,0.98770741]
[1751296208757,1.06071017,107060.0,107050.0,0.80092101]
[1751296209258,1.06071017,107060.0,107050.0,0.7636]
[1751296209459,0.1867864,107050.0,107040.0,0.42999926]
[1751296209754,0.95761737,107050.0,107040.0,1.72146869]
[1751296210352,0.95761737,107050.0,107040.0,0.95818869]
[1751296210552,0.6375864,107050.0,107040.0,0.68569866]
[1751296210857,0.6375864,107050.0,107040.0,1.67382869]
[1751296210858,0.95761737,107050.0,107040.0,1.67382869]
[1751296211059,0.95761737,107050.0,107040.0,1.40220396]
[1751296211252,0.2312864,107050.0,107040.0,1.98789399]
[1751296211447,0.2312864,107050.0,107040.0,1.67079399]
[1751296212151,0.1867864,107050.0,107040.0,2.53741936]
[1751296212954,0.1867864,107050.0,107040.0,2.4814193]
[1751296213257,0.1867864,107050.0,107040.0,2.16138833]
[1751296213560,0.1867864,107050.0,107040.0,2.4814193]
[1751296214764,0.1867864,107050.0,107040.0,2.16138833]
[1751296215150,0.50681737,107050.0,107040.0,1.1265989]
[1751296215355,0.1867864,107050.0,107040.0,2.11448893]
[1751296216052,0.1867864,107050.0,107040.0,2.4345199]
[1751296217851,0.3723699,107060.0,107050.0,0.1867864]
[1751296218051,0.69240087,107060.0,107050.0,0.89109113]
[1751296219055,0.2344786,107060.0,107050.0,1.25189113]
[1751296219355,0.187769,107060.0,107050.0,1.5327655]
[1751296219756,0.187769,107060.0,107050.0,1.5763655]
[1751296220461,0.187769,107060.0,107050.0,1.25633453]
[1751296220762,0.187769,107060.0,107050.0,1.5763655]
[1751296221355,0.1375736,107080.0,107060.0,0.186769]
[1751296221557,0.1867515,107070.0,107060.0,1.49336215]
[1751296221766,0.3724107,107080.0,107070.0,0.56536153]
[1751296221958,0.6524107,107080.0,107070.0,1.28246153]
[1751296222156,0.69244167,107080.0,107070.0,1.28246153]
[1751296222352,0.3724107,107080.0,107070.0,1.33835561]
[1751296222560,0.3724107,107080.0,107070.0,1.38185561]
[1751296222755,0.3277758,107090.0,107080.0,0.1867341]
[1751296222954,0.7433758,107090.0,107080.0,1.81415711]
[1751296223161,0.7433758,107090.0,107080.0,1.85765711]
[1751296223463,0.5166933,107090.0,107080.0,1.88401775]
[1751296224463,0.5166933,107090.0,107080.0,1.52321775]
[1751296224862,0.83672427,107090.0,107080.0,1.87457953]
[1751296225060,1.19752427,107090.0,107080.0,1.0890695]
[1751296225358,0.88472427,107090.0,107080.0,1.31395953]
[1751296225963,1.24552427,107090.0,107080.0,0.50505953]
[1751296226166,1.24552427,107090.0,107080.0,0.8558354]
[1751296226466,1.24552427,107090.0,107080.0,0.2801695]
[1751296226666,1.24552427,107090.0,107080.0,1.0425695]
[1751296227063,1.24552427,107090.0,107080.0,1.0799235]
[1751296227264,1.24552427,107090.0,107080.0,1.1233235]
[1751296227464,0.9254933,107090.0,107080.0,1.10640108]
[1751296227667,0.83672427,107090.0,107080.0,1.10640108]
[1751296228363,1.19752427,107090.0,107080.0,1.10640108]
[1751296229067,1.26411627,107090.0,107080.0,1.10640108]
[1751296229467,1.26411627,107090.0,107080.0,1.29393711]
[1751296229667,0.9440853,107090.0,107080.0,1.29393711]
[1751296230171,0.90331627,107090.0,107080.0,1.29393711]
[1751296230469,0.85831627,107090.0,107080.0,1.29393711]
[1751296230767,0.85831627,107090.0,107080.0,1.64393711]
[1751296230968,0.85831627,107090.0,107080.0,1.33773711]
[1751296231361,0.85831627,107090.0,107080.0,1.66773711]
[1751296231563,0.5382853,107090.0,107080.0,1.66773711]
[1751296231759,0.3266933,107090.0,107080.0,1.33773711]
[1751296231964,0.3266933,107090.0,107080.0,1.71773711]
[1751296232166,0.3266933,107090.0,107080.0,1.33773711]
[1751296232967,0.2810933,107090.0,107080.0,2.02473711]
[1751296233166,0.2810933,107090.0,107080.0,2.16367805]
[1751296233373,0.1877167,107090.0,107080.0,2.38856808]
[1751296233567,0.1877167,107090.0,107080.0,2.44446216]
[1751296233764,0.001,107090.0,107080.0,2.44446216]
[1751296234073,0.001,107090.0,107080.0,2.38856808]
[1751296234074,0.1877166,107090.0,107080.0,2.38856808]
[1751296234275,0.1877166,107090.0,107080.0,2.44437982]
[1751296234575,0.1877166,107090.0,107080.0,2.12434885]
[1751296235472,0.1877167,107090.0,107080.0,2.44437982]
[1751296235672,0.001,107090.0,107080.0,2.44437982]
[1751296236174,0.1877167,107090.0,107080.0,2.44437982]
[1751296236371,0.001,107090.0,107080.0,2.44437982]
[1751296236570,0.1877167,107090.0,107080.0,2.44437982]
[1751296236968,0.001,107090.0,107080.0,2.44437982]
[1751296237169,0.2333905,107100.0,107090.0,0.1867167]
[1751296237374,0.1866923,107110.0,107100.0,0.1866992]
[1751296237575,0.1866923,107110.0,107100.0,1.94044923]
[1751296238067,0.2285923,107110.0,107100.0,1.94044923]
[1751296238469,0.2285923,107110.0,107100.0,1.98384923]
[1751296239371,0.2285923,107110.0,107100.0,1.62304923]
[1751296239577,0.54862327,107110.0,107100.0,1.57824923]
[1751296239978,0.54862327,107110.0,107100.0,1.58764658]
[1751296240176,0.36155025,107120.0,107110.0,0.1866818]
[1751296240379,0.36155025,107120.0,107110.0,1.12237183]
[1751296240380,0.50744992,107120.0,107110.0,1.12237183]
[1751296240571,0.91384992,107120.0,107110.0,1.21611183]
[1751296240775,0.59784992,107120.0,107110.0,1.52611183]
[1751296241270,0.59784992,107120.0,107110.0,1.88691183]
[1751296241470,0.59784992,107120.0,107110.0,1.88791183]
[1751296241676,0.55304992,107120.0,107110.0,1.88791183]
[1751296241875,0.55304992,107120.0,107110.0,1.88691183]
[1751296242675,0.55304992,107120.0,107110.0,1.6620218]
[1751296242877,0.55304992,107120.0,107110.0,1.88691183]
[1751296243777,0.50744992,107120.0,107110.0,1.88691183]
[1751296243982,0.18741895,107120.0,107110.0,2.2069428]
[1751296244182,0.54974992,107120.0,107110.0,1.88691183]
[1751296244382,0.54974992,107120.0,107110.0,1.88663183]
[1751296244580,0.27391895,107120.0,107110.0,1.88663183]
[1751296244780,0.59394992,107120.0,107110.0,1.88663183]
[1751296244983,0.59394992,107120.0,107110.0,1.52583183]
[1751296245185,0.59394992,107120.0,107110.0,0.45527183]
[1751296245480,0.59394992,107120.0,107110.0,0.73157183]
[1751296245681,0.22971895,107120.0,107110.0,1.94799277]
[1751296245882,0.22971895,107120.0,107110.0,1.57915183]
[1751296246077,0.68975652,107120.0,107100.0,1.13198589]
[1751296246288,0.55271277,107110.0,107100.0,1.98997335]
[1751296246686,0.55271277,107110.0,107100.0,1.35688]
[1751296246886,0.95971277,107110.0,107100.0,2.1884432]
[1751296247183,0.95971277,107110.0,107100.0,1.197904]
[1751296247386,0.96971277,107110.0,107100.0,0.84056]
[1751296247587,1.40971277,107110.0,107100.0,0.84056]
[1751296247783,1.90971277,107110.0,107100.0,1.60088]
[1751296247984,1.90971277,107110.0,107100.0,0.99348]
[1751296248183,1.90971277,107110.0,107100.0,1.60088]
[1751296248387,2.15976697,107110.0,107080.0,0.05581174]
[1751296248683,2.15976697,107110.0,107060.0,0.60736]
[1751296248684,0.1867515,107070.0,107060.0,0.60736]
[1751296248887,0.1867515,107070.0,107060.0,0.60673734]
[1751296248888,0.86758247,107070.0,107060.0,0.60673734]
[1751296249092,1.05868247,107070.0,107060.0,0.60673734]
[1751296249684,0.1867679,107060.0,107050.0,0.4461954]
[1751296249879,0.55209887,107060.0,107050.0,1.29791848]
[1751296250085,0.2320679,107060.0,107050.0,1.29791848]
[1751296250386,0.55209887,107060.0,107050.0,1.28840753]
[1751296251391,0.55209887,107060.0,107050.0,1.29240753]
[1751296251583,0.55209887,107060.0,107050.0,1.60240753]
[1751296251779,0.2320679,107060.0,107050.0,1.67590948]
[1751296251978,0.2320679,107060.0,107050.0,1.67586948]
[1751296252181,0.2320679,107060.0,107050.0,1.67586898]
[1751296252388,0.2320679,107060.0,107050.0,1.38586898]
[1751296252590,0.9677744,107060.0,107050.0,0.0641922]
[1751296252792,1.0137744,107060.0,107050.0,0.7818122]
[1751296252991,1.0137744,107060.0,107050.0,0.1746122]
[1751296253197,1.0137744,107060.0,107050.0,0.6289322]
[1751296253389,1.0560744,107060.0,107050.0,0.6289322]
[1751296253589,1.0560744,107060.0,107050.0,0.6288922]
[1751296253784,1.0560744,107060.0,107050.0,0.0216922]
[1751296254085,1.1060744,107060.0,107050.0,0.6288922]
[1751296255089,1.6060744,107060.0,107050.0,0.6288922]
[1751296255889,1.6060744,107060.0,107050.0,0.0216922]
[1751296256389,1.9360744,107060.0,107050.0,0.0216922]
[1751296256591,2.4728904,107060.0,107050.0,0.0216922]
[1751296257194,0.1868031,107040.0,107030.0,0.77665032]
[1751296257491,1.0225096,107040.0,107030.0,0.15296]
[1751296257790,1.0139096,107040.0,107030.0,0.15296]
[1751296258488,1.0139096,107040.0,107030.0,0.15996]
[1751296258983,1.5139096,107040.0,107030.0,0.15996]
[1751296259284,1.52327376,107040.0,107030.0,0.15996]
[1751296260883,1.52327376,107040.0,107030.0,0.007]
[1751296261085,1.57087376,107040.0,107030.0,0.007]
[1751296261281,0.1868205,107030.0,107020.0,0.84145436]
[1751296261484,1.015227,107030.0,107020.0,0.00093436]
[1751296262886,1.2472005,107030.0,107020.0,0.00093436]
[1751296263086,1.515227,107030.0,107020.0,0.00093436]
[1751296264194,1.515227,107030.0,107020.0,0.00493436]
[1751296264996,1.732099,107030.0,107020.0,0.00493436]
[1751296266796,1.545227,107030.0,107020.0,0.00493436]
[1751296269700,2.441867,107030.0,107020.0,0.00493436]
[1751296269899,2.441867,107030.0,107020.0,0.04903436]
[1751296270300,2.441867,107030.0,107020.0,0.00293436]
[1751296270696,1.787027,107030.0,107020.0,0.22782439]